fUSD/lending_fUSD_20240109
["ID","MTS","AMOUNT","RATE_DAILY","PERIOD"]
[310975664,1704838278075,-16615.54,0.00041178,30]
[310975665,1704838278085,-5020.76,0.00041178,30]
[310975666,1704838278094,-2277.23,0.00041178,30]
[310975667,1704838278104,-500.0,0.00041178,7]
[310975668,1704838278113,-500.0,0.00041178,30]
[310975669,1704838278123,-1808.27,0.00041178,30]
[310975670,1704838278133,-1296.63,0.00041178,30]
[310975671,1704838278142,-500.0,0.00041178,30]
[310975672,1704838278152,-500.0,0.00041178,30]
[310975673,1704838278162,-1976.34,0.00041178,30]
[310975674,1704838278171,-1539.01,0.00041178,30]
[310975675,1704838278181,-1666.86,0.00041178,30]
[310975676,1704838278190,-948.22,0.00041178,30]
[310975677,1704838278199,-500.0,0.00041178,30]
[310975678,1704838278209,-1205.56,0.00041178,30]
[310975679,1704838278219,-2079.61,0.00041178,30]
[310975680,1704838278229,-801.76,0.00041178,30]
[310975681,1704838278240,-4081.69,0.00041178,30]
[310975682,1704838278253,-3259.69,0.00041178,30]
[310975683,1704838278265,-570.73,0.00041178,30]
[310975684,1704838278274,-500.0,0.00041178,30]
[310975685,1704838278284,-1497.4,0.00041178,30]
[310975686,1704838278293,-717.5,0.00041178,30]
[310975687,1704838278306,-500.0,0.00041178,30]
[310975688,1704838278315,-500.0,0.00041178,30]
[310975689,1704838278325,-28570.96,0.00041178,30]
[310975690,1704838278334,-1778.5,0.00041178,30]
[310975691,1704838278344,-603.66067948,0.00041178,30]
[310975692,1704838278353,-2771.91,0.00041178,30]
[310975693,1704838278362,-500.0,0.00041178,30]
[310975694,1704838278372,-1907.56,0.00041178,30]
[310975695,1704838278381,-500.0,0.00041178,30]
[310975696,1704838278391,-1123.88,0.00041178,30]
[310975697,1704838278400,-500.0,0.00041178,30]
[310975698,1704838278409,-500.0,0.00041178,30]
[310975699,1704838278419,-4669.56,0.00041178,30]
[310975700,1704838278428,-5007.65,0.00041178,30]
[310975701,1704838278438,-500.0,0.00041178,30]
[310975702,1704838278447,-3322.13,0.00041178,30]
[310975703,1704838278456,-1486.69,0.00041178,30]
[310975704,1704838278466,-2423.33,0.00041178,30]
[310975705,1704838278475,-5248.46,0.00041178,30]
[310975706,1704838278485,-500.0,0.00041178,30]
[310975707,1704838278495,-544.33,0.00041178,30]
[310975708,1704838278505,-2505.63,0.00041178,30]
[310975709,1704838278515,-500.0,0.00041178,30]
[310975710,1704838278524,-2340.4,0.00041178,30]
[310975711,1704838278533,-2974.2,0.00041178,30]
[310975712,1704838278543,-791.9,0.00041178,30]
[310975713,1704838278555,-585.8,0.00041178,30]
[310975714,1704838278565,-500.0,0.00041178,30]
[310975715,1704838278575,-500.0,0.00041178,30]
[310975716,1704838278584,-4396.89,0.00041178,30]
[310975717,1704838278594,-2998.41,0.00041178,30]
[310975718,1704838278603,-2200.45,0.00041178,30]
[310975719,1704838278613,-500.0,0.00041178,30]
[310975720,1704838278622,-669.83,0.00041178,30]
[310975721,1704838278632,-606.27,0.00041178,30]
[310975722,1704838278641,-500.0,0.00041178,30]
[310975723,1704838278651,-665.74,0.00041178,30]
[310975724,1704838278660,-1058.26,0.00041178,30]
[310975725,1704838278669,-500.0,0.00041178,30]
[310975726,1704838278679,-500.0,0.00041178,30]
[310975727,1704838278688,-151.0,0.00041178,14]
[310975728,1704838278698,-226.526954,0.00041178,14]
[310975729,1704838278707,-226.526954,0.00041178,14]
[310975730,1704838278717,-226.526954,0.00041178,14]
[310975731,1704838278727,-226.526954,0.00041178,14]
[310975732,1704838278736,-151.0,0.00041178,14]
[310975733,1704838278746,-151.0,0.00041178,14]
[310975734,1704838278756,-493.545168,0.00041178,14]
[310975735,1704838278766,-493.545168,0.00041178,14]
[310975736,1704838278775,-493.545168,0.00041178,14]
[310975737,1704838278785,-493.545168,0.00041178,14]
[310975738,1704838278794,-151.0,0.00041178,14]
[310975739,1704838278806,-151.0,0.00041178,14]
[310975740,1704838278815,-151.0,0.00041178,14]
[310975741,1704838278825,-151.0,0.00041178,14]
[310975742,1704838278834,-393.686593,0.00041178,14]
[310975743,1704838278844,-393.686593,0.00041178,14]
[310975744,1704838278853,-185.359581,0.00041178,14]
[310975745,1704838278863,-185.359581,0.00041178,14]
[310975746,1704838278872,-536.330019,0.00041178,14]
[310975747,1704838278882,-536.330019,0.00041178,14]
[310975748,1704838278892,-156.142528,0.00041178,14]
[310975749,1704838278902,-417.310268,0.00041178,14]
[310975750,1704838278911,-417.310268,0.00041178,14]
[310975751,1704838278921,-235.364519,0.00041178,14]
[310975752,1704838278931,-235.364519,0.00041178,14]
[310975753,1704838278940,-151.0,0.00041178,14]
[310975754,1704838278950,-234.4011,0.00041198,8]
[310975755,1704838278959,-151.11577683,0.000412,7]
[310975756,1704838278969,-157.32,0.000412,4]
[310975757,1704838278979,-157.32,0.000412,4]
[310975758,1704838278988,-157.32,0.000412,4]
[310975759,1704838278998,-157.32,0.000412,4]
[310975760,1704838279007,-157.32,0.000412,4]
[310975761,1704838279017,-157.32,0.000412,4]
[310975762,1704838279027,-8750.0,0.000412,5]
[310975763,1704838279036,-3568.63209012,0.00041221,10]
[310975764,1704838279046,-177.04,0.00041227,60]
[310975765,1704838279058,-156.09,0.00041227,60]
[310975766,1704838279067,-1924.38,0.00041231,120]
[310975767,1704838279077,-2548.88848366,0.00041232,120]
[310975768,1704838279086,-163.4322811,0.00041232,2]
[310975769,1704838279096,-2674.4338406,0.00041232,2]
[310975770,1704838279105,-2845.578735,0.00041232,2]
[310975771,1704838279115,-377.204665,0.00041232,2]
[310975772,1704838279124,-500.0,0.00041246,7]
[310975773,1704838279133,-500.0,0.00041246,7]
[310975774,1704838279142,-500.0,0.00041246,7]
[310975775,1704838279151,-500.0,0.00041246,7]
[310975776,1704838279161,-500.0,0.00041246,7]
[310975777,1704838279170,-500.0,0.00041246,7]
[310975778,1704838279179,-500.0,0.00041246,7]
[310975779,1704838279189,-500.0,0.00041246,7]
[310975780,1704838279198,-500.0,0.00041246,7]
[310975781,1704838279208,-500.0,0.00041246,7]
[310975782,1704838279218,-500.0,0.00041246,7]
[310975783,1704838279227,-158.86,0.00041246,7]
[310975784,1704838279236,-150.0,0.00041248,2]
[310975785,1704838279246,-8750.0,0.0004125,5]
[310975786,1704838279255,-339.73021203,0.00041259,60]
[310975787,1704838279265,-339.73021203,0.00041259,60]
[310975788,1704838279274,-339.73021203,0.00041259,60]
[310975789,1704838279283,-339.73021203,0.00041259,60]
[310975790,1704838279293,-339.73021203,0.00041259,60]
[310975791,1704838279302,-339.73021202,0.00041259,60]
[310975792,1704838279315,-156.19322,0.0004126,14]
[310975793,1704838279325,-468.29370821,0.0004126,30]
[310975794,1704838279334,-500.0,0.0004126,30]
[310975795,1704838279343,-500.0,0.0004126,30]
[310975796,1704838279353,-500.0,0.0004126,30]
[310975797,1704838279362,-807.24,0.0004126,30]
[310975798,1704838279371,-500.0,0.0004126,30]
[310975799,1704838279380,-500.0,0.0004126,30]
[310975800,1704838279389,-500.0,0.0004126,30]
[310975801,1704838279399,-500.0,0.0004126,30]
[310975802,1704838279408,-500.0,0.0004126,30]
[310975803,1704838279417,-500.0,0.0004126,30]
[310975804,1704838279426,-840.21,0.0004126,30]
[310975805,1704838279435,-500.0,0.0004126,7]
[310975806,1704838279444,-581.05,0.0004126,30]
[310975807,1704838279454,-981.24,0.0004126,30]
[310975808,1704838279463,-500.0,0.0004126,30]
[310975809,1704838279472,-841.98,0.0004126,30]
[310975810,1704838279481,-500.0,0.0004126,30]
[310975811,1704838279491,-500.0,0.0004126,30]
[310975812,1704838279500,-548.78,0.0004126,30]
[310975813,1704838279509,-659.63,0.0004126,30]
[310975814,1704838279519,-608.72181237,0.0004126,30]
[310975815,1704838279529,-500.0,0.0004126,30]
[310975816,1704838279539,-711.8,0.0004126,30]
[310975817,1704838279548,-500.0,0.0004126,30]
[310975818,1704838279560,-615.37,0.0004126,30]
[310975819,1704838279570,-648.25,0.0004126,30]
[310975820,1704838279579,-500.0,0.0004126,30]
[310975821,1704838279588,-500.0,0.0004126,30]
[310975822,1704838279597,-500.0,0.0004126,30]
[310975823,1704838279606,-550.5,0.0004126,30]
[310975824,1704838279615,-737.28,0.0004126,30]
[310975825,1704838279624,-500.0,0.0004126,30]
[310975826,1704838279760,-738.06,0.0004126,30]
[310975827,1704838279769,-500.0,0.0004126,30]
[310975828,1704838279778,-500.0,0.0004126,30]
[310975829,1704838279788,-500.0,0.0004126,30]
[310975830,1704838279797,-500.0,0.0004126,30]
[310975831,1704838279807,-500.0,0.0004126,30]
[310975832,1704838279816,-500.0,0.0004126,30]
[310975833,1704838279825,-549.09,0.0004126,30]
[310975834,1704838279834,-532.54,0.0004126,30]
[310975835,1704838279843,-500.0,0.0004126,30]
[310975836,1704838279852,-500.0,0.0004126,30]
[310975837,1704838279861,-500.0,0.0004126,30]
[310975838,1704838279870,-500.0,0.0004126,30]
[310975839,1704838279879,-500.0,0.0004126,30]
[310975840,1704838279889,-500.0,0.0004126,30]
[310975841,1704838279898,-769.53,0.0004126,30]
[310975842,1704838279907,-619.92,0.0004126,30]
[310975843,1704838279916,-500.0,0.0004126,30]
[310975844,1704838279926,-500.0,0.0004126,30]
[310975845,1704838279935,-500.0,0.0004126,30]
[310975846,1704838279944,-500.0,0.0004126,30]
[310975847,1704838279953,-965.65,0.0004126,30]
[310975848,1704838279962,-500.0,0.0004126,5]
[310975849,1704838279971,-500.0,0.0004126,30]
[310975850,1704838279980,-500.0,0.0004126,30]
[310975851,1704838279989,-500.0,0.0004126,30]
[310975852,1704838279998,-500.0,0.0004126,30]
[310975853,1704838280007,-425.76978344,0.0004126,30]
[310975854,1704838280016,-500.0,0.0004126,30]
[310975855,1704838280025,-211.88362144,0.0004126,30]
[310975856,1704838280035,-500.0,0.0004126,30]
[310975857,1704838280043,-514.48798765,0.0004126,30]
[310975858,1704838280053,-328.12053449,0.0004126,30]
[310975859,1704838280064,-820.75,0.0004126,30]
[310975860,1704838280076,-500.0,0.0004126,30]
[310975861,1704838280110,-500.0,0.0004126,30]
[310975862,1704838280119,-500.0,0.0004126,30]
[310975863,1704838280128,-500.0,0.0004126,30]
[310975864,1704838280137,-589.22,0.0004126,30]
[310975865,1704838280146,-500.0,0.0004126,30]
[310975866,1704838280155,-500.0,0.0004126,30]
[310975867,1704838280164,-500.0,0.0004126,30]
[310975868,1704838280173,-500.0,0.0004126,30]
[310975869,1704838280183,-582.79,0.0004126,30]
[310975870,1704838280192,-631.03,0.0004126,30]
[310975871,1704838280201,-545.27,0.0004126,30]
[310975872,1704838280210,-500.0,0.0004126,30]
[310975873,1704838280221,-500.0,0.0004126,30]
[310975874,1704838280230,-500.0,0.0004126,30]
[310975875,1704838280240,-500.0,0.0004126,30]
[310975876,1704838280249,-500.0,0.0004126,30]
[310975877,1704838280258,-659.73,0.0004126,30]
[310975878,1704838280268,-500.0,0.0004126,30]
[310975879,1704838280278,-500.0,0.0004126,30]
[310975880,1704838280287,-500.0,0.0004126,30]
[310975881,1704838280296,-500.0,0.0004126,30]
[310975882,1704838280309,-556.47,0.0004126,30]
[310975883,1704838280320,-500.0,0.0004126,30]
[310975884,1704838280329,-1383.38,0.0004126,30]
[310975885,1704838280339,-500.0,0.0004126,30]
[310975886,1704838280349,-500.0,0.0004126,30]
[310975887,1704838280359,-500.0,0.0004126,30]
[310975888,1704838280370,-794.95,0.0004126,30]
[310975889,1704838280379,-500.0,0.0004126,30]
[310975890,1704838280389,-583.28,0.0004126,30]
[310975891,1704838280399,-500.0,0.0004126,30]
[310975892,1704838280409,-500.0,0.0004126,30]
[310975893,1704838280418,-500.0,0.0004126,30]
[310975894,1704838280428,-500.0,0.0004126,30]
[310975895,1704838280437,-500.0,0.0004126,30]
[310975896,1704838280447,-198.96658811,0.0004126,30]
[310975897,1704838280457,-500.0,0.0004126,30]
[310975898,1704838280466,-500.0,0.0004126,15]
[310975899,1704838280475,-500.0,0.0004126,30]
[310975900,1704838280484,-226.526954,0.0004126,14]
[310975901,1704838280494,-500.0,0.0004126,30]
[310975902,1704838280503,-226.526954,0.0004126,14]
[310975903,1704838280512,-500.0,0.0004126,30]
[310975904,1704838280521,-500.0,0.0004126,30]
[310975905,1704838280532,-1656.81,0.0004126,30]
[310975906,1704838280542,-500.0,0.0004126,30]
[310975907,1704838280553,-500.0,0.0004126,30]
[310975908,1704838280566,-500.0,0.0004126,30]
[310975909,1704838280575,-500.0,0.0004126,30]
[310975910,1704838280584,-500.0,0.0004126,30]
[310975911,1704838280594,-500.0,0.0004126,30]
[310975912,1704838280603,-500.0,0.0004126,2]
[310975913,1704838280612,-500.0,0.0004126,30]
[310975914,1704838280622,-500.0,0.0004126,30]
[310975915,1704838280631,-500.0,0.0004126,30]
[310975916,1704838280640,-500.0,0.0004126,30]
[310975917,1704838280651,-311.21613117,0.0004126,2]
[310975918,1704838280660,-500.0,0.0004126,30]
[310975919,1704838280670,-500.0,0.0004126,30]
[310975920,1704838280679,-855.3,0.0004126,30]
[310975921,1704838280689,-500.0,0.0004126,30]
[310975922,1704838280698,-500.0,0.0004126,30]
[310975923,1704838280708,-500.0,0.0004126,30]
[310975924,1704838280718,-500.0,0.0004126,30]
[310975925,1704838280727,-500.0,0.0004126,30]
[310975926,1704838280737,-500.0,0.0004126,30]
[310975927,1704838280747,-500.0,0.0004126,30]
[310975928,1704838280756,-500.0,0.0004126,30]
[310975929,1704838280766,-500.0,0.0004126,30]
[310975930,1704838280776,-500.0,0.0004126,30]
[310975931,1704838280785,-500.0,0.0004126,30]
[310975932,1704838280795,-500.0,0.0004126,30]
[310975933,1704838280806,-500.0,0.0004126,30]
[310975934,1704838280816,-500.0,0.0004126,30]
[310975935,1704838280826,-500.0,0.0004126,30]
[310975936,1704838280836,-500.0,0.0004126,30]
[310975937,1704838280846,-500.0,0.0004126,30]
[310975938,1704838280856,-826.09,0.0004126,30]
[310975939,1704838280866,-500.0,0.0004126,30]
[310975940,1704838280876,-500.0,0.0004126,30]
[310975941,1704838280885,-500.0,0.0004126,30]
[310975942,1704838280896,-500.0,0.0004126,30]
[310975943,1704838280906,-167.955687,0.0004126,14]
[310975944,1704838280916,-500.0,0.0004126,30]
[310975945,1704838280926,-500.0,0.0004126,30]
[310975946,1704838280936,-500.0,0.0004126,30]
[310975947,1704838280946,-699.72,0.0004126,30]
[310975948,1704838280956,-500.0,0.0004126,30]
[310975949,1704838280965,-969.6,0.0004126,30]
[310975950,1704838280975,-500.0,0.0004126,2]
[310975951,1704838280985,-500.0,0.0004126,30]
[310975952,1704838280995,-500.0,0.0004126,30]
[310975953,1704838281005,-500.0,0.0004126,30]
[310975954,1704838281015,-500.0,0.0004126,30]
[310975955,1704838281024,-500.0,0.0004126,30]
[310975956,1704838281033,-636.12,0.0004126,30]
[310975957,1704838281043,-884.22,0.0004126,30]
[310975958,1704838281052,-500.0,0.0004126,30]
[310975959,1704838281065,-558.2585973,0.0004126,30]
[310975960,1704838281074,-809.17,0.0004126,30]
[310975961,1704838281084,-500.0,0.0004126,30]
[310975962,1704838281094,-500.0,0.0004126,30]
[310975963,1704838281103,-500.0,0.0004126,30]
[310975964,1704838281113,-500.0,0.0004126,30]
[310975965,1704838281122,-500.0,0.0004126,30]
[310975966,1704838281131,-500.0,0.0004126,30]
[310975967,1704838281141,-500.0,0.0004126,30]
[310975968,1704838281150,-500.0,0.0004126,30]
[310975969,1704838281159,-500.0,0.0004126,30]
[310975970,1704838281168,-500.0,0.0004126,30]
[310975971,1704838281178,-500.0,0.0004126,30]
[310975972,1704838281188,-500.0,0.0004126,30]
[310975973,1704838281199,-500.0,0.0004126,30]
[310975974,1704838281209,-1095.94,0.0004126,30]
[310975975,1704838281220,-1092.75,0.0004126,30]
[310975976,1704838281230,-500.0,0.0004126,30]
[310975977,1704838281239,-500.0,0.0004126,30]
[310975978,1704838281248,-500.0,0.0004126,30]
[310975979,1704838281258,-500.0,0.0004126,30]
[310975980,1704838281267,-697.87,0.0004126,30]
[310975981,1704838281276,-500.0,0.0004126,30]
[310975982,1704838281286,-732.79,0.0004126,30]
[310975983,1704838281296,-500.0,0.0004126,30]
[310975984,1704838281308,-500.0,0.0004126,30]
[310975985,1704838281318,-500.0,0.0004126,30]
[310975986,1704838281328,-500.0,0.0004126,30]
[310975987,1704838281338,-500.0,0.0004126,30]
[310975988,1704838281347,-500.0,0.0004126,30]
[310975989,1704838281358,-500.0,0.0004126,30]
[310975990,1704838281367,-1093.88,0.0004126,30]
[310975991,1704838281377,-500.0,0.0004126,30]
[310975992,1704838281387,-911.96,0.0004126,30]
[310975993,1704838281396,-553.69,0.0004126,30]
[310975994,1704838281405,-500.0,0.0004126,30]
[310975995,1704838281415,-500.0,0.0004126,30]
[310975996,1704838281425,-629.6,0.0004126,30]
[310975997,1704838281435,-365.54784811,0.0004126,30]
[310975998,1704838281445,-1000.0,0.0004126,30]
[310975999,1704838281454,-500.0,0.0004126,30]
[310976000,1704838281463,-500.0,0.0004126,30]
[310976001,1704838281473,-954.8,0.0004126,30]
[310976002,1704838281483,-500.0,0.0004126,30]
[310976003,1704838281492,-464.67939238,0.0004126,30]
[310976004,1704838281502,-500.0,0.0004126,30]
[310976005,1704838281512,-731.3,0.0004126,30]
[310976006,1704838281521,-500.0,0.0004126,30]
[310976007,1704838281531,-500.0,0.0004126,30]
[310976008,1704838281542,-500.0,0.0004126,30]
[310976009,1704838281551,-500.0,0.0004126,30]
[310976010,1704838281564,-500.0,0.0004126,30]
[310976011,1704838281574,-965.23,0.0004126,30]
[310976012,1704838281584,-715.75,0.0004126,30]
[310976013,1704838281595,-500.0,0.0004126,30]
[310976014,1704838281605,-500.0,0.0004126,30]
[310976015,1704838281616,-500.0,0.0004126,30]
[310976016,1704838281626,-500.0,0.0004126,30]
[310976017,1704838281635,-868.98,0.0004126,30]
[310976018,1704838281645,-500.0,0.0004126,30]
[310976019,1704838281655,-605.08,0.0004126,30]
[310976020,1704838281665,-793.55,0.0004126,30]
[310976021,1704838281674,-1000.0,0.0004126,10]
[310976022,1704838281684,-500.0,0.0004126,30]
[310976023,1704838281693,-940.16,0.0004126,30]
[310976024,1704838281703,-586.7,0.0004126,30]
[310976025,1704838281712,-629.82,0.0004126,30]
[310976026,1704838281722,-500.0,0.0004126,30]
[310976027,1704838281732,-826.1,0.0004126,30]
[310976028,1704838281741,-500.0,0.0004126,30]
[310976029,1704838281751,-672.75,0.0004126,30]
[310976030,1704838281761,-500.0,0.0004126,30]
[310976031,1704838281771,-500.0,0.0004126,30]
[310976032,1704838281780,-500.0,0.0004126,30]
[310976033,1704838281790,-500.0,0.0004126,30]
[310976034,1704838281800,-500.0,0.0004126,30]
[310976035,1704838281812,-500.0,0.0004126,30]
[310976036,1704838281822,-500.0,0.0004126,30]
[310976037,1704838281832,-1579.44,0.0004126,30]
[310976038,1704838281841,-913.61,0.0004126,30]
[310976039,1704838281851,-500.0,0.0004126,30]
[310976040,1704838281861,-500.0,0.0004126,30]
[310976041,1704838281871,-740.8,0.0004126,30]
[310976042,1704838281881,-507.12089612,0.0004126,30]
[310976043,1704838281891,-1195.0,0.0004126,30]
[310976044,1704838281900,-500.0,0.0004126,30]
[310976045,1704838281910,-500.0,0.0004126,30]
[310976046,1704838281920,-500.0,0.0004126,30]
[310976047,1704838281930,-537.75,0.0004126,30]
[310976048,1704838281939,-500.0,0.0004126,30]
[310976049,1704838281949,-500.0,0.0004126,30]
[310976050,1704838281959,-574.64840563,0.0004126,30]
[310976051,1704838281969,-500.0,0.0004126,30]
[310976052,1704838281978,-504.99972845,0.0004126,30]
[310976053,1704838281989,-500.0,0.0004126,30]
[310976054,1704838281998,-758.11,0.0004126,30]
[310976055,1704838282008,-500.0,0.0004126,30]
[310976056,1704838282018,-1327.58,0.0004126,30]
[310976057,1704838282028,-500.0,0.0004126,30]
[310976058,1704838282038,-500.0,0.0004126,30]
[310976059,1704838282049,-500.0,0.0004126,30]
[310976060,1704838282061,-500.0,0.0004126,30]
[310976061,1704838282072,-500.0,0.0004126,30]
[310976062,1704838282082,-500.0,0.0004126,30]
[310976063,1704838282092,-526.19,0.0004126,30]
[310976064,1704838282104,-500.0,0.0004126,30]
[310976065,1704838282116,-500.0,0.0004126,30]
[310976066,1704838282127,-500.0,0.0004126,30]
[310976067,1704838282137,-500.0,0.0004126,30]
[310976068,1704838282148,-1553.12,0.0004126,30]
[310976069,1704838282159,-500.0,0.0004126,30]
[310976070,1704838282169,-627.74,0.0004126,30]
[310976071,1704838282180,-500.0,0.0004126,30]
[310976072,1704838282191,-500.0,0.0004126,30]
[310976073,1704838282202,-813.03,0.0004126,30]
[310976074,1704838282212,-500.0,0.0004126,30]
[310976075,1704838282226,-500.0,0.0004126,30]
[310976076,1704838282237,-500.0,0.0004126,30]
[310976077,1704838282247,-1218.54,0.0004126,30]
[310976078,1704838282259,-500.0,0.0004126,30]
[310976079,1704838282269,-500.0,0.0004126,30]
[310976080,1704838282279,-930.98,0.0004126,30]
[310976081,1704838282289,-500.0,0.0004126,30]
[310976082,1704838282299,-500.0,0.0004126,30]
[310976083,1704838282313,-528.15,0.0004126,30]
[310976084,1704838282324,-778.06,0.0004126,30]
[310976085,1704838282334,-303.62474535,0.0004126,30]
[310976086,1704838282344,-500.0,0.0004126,30]
[310976087,1704838282354,-750.76,0.0004126,30]
[310976088,1704838282363,-500.0,0.0004126,30]
[310976089,1704838282373,-630.23,0.0004126,30]
[310976090,1704838282383,-1131.88,0.0004126,30]
[310976091,1704838282393,-1105.98,0.0004126,30]
[310976092,1704838282403,-500.0,0.0004126,30]
[310976093,1704838282414,-1116.21,0.0004126,30]
[310976094,1704838282424,-565.46,0.0004126,30]
[310976095,1704838282434,-500.0,0.0004126,30]
[310976096,1704838282445,-500.0,0.0004126,30]
[310976097,1704838282454,-1638.68,0.0004126,30]
[310976098,1704838282465,-500.0,0.0004126,30]
[310976099,1704838282476,-798.11,0.0004126,30]
[310976100,1704838282487,-500.0,0.0004126,30]
[310976101,1704838282497,-500.0,0.0004126,30]
[310976102,1704838282508,-500.0,0.0004126,30]
[310976103,1704838282519,-631.35,0.0004126,30]
[310976104,1704838282529,-500.0,0.0004126,30]
[310976105,1704838282540,-1492.74,0.0004126,30]
[310976106,1704838282551,-802.75,0.0004126,30]
[310976107,1704838282566,-500.0,0.0004126,30]
[310976108,1704838282577,-500.0,0.0004126,30]
[310976109,1704838282587,-500.0,0.0004126,30]
[310976110,1704838282597,-1391.21,0.0004126,30]
[310976111,1704838282606,-500.0,0.0004126,30]
[310976112,1704838282617,-500.0,0.0004126,30]
[310976113,1704838282626,-789.67,0.0004126,30]
[310976114,1704838282637,-500.0,0.0004126,30]
[310976115,1704838282647,-800.32,0.0004126,30]
[310976116,1704838282657,-525.86,0.0004126,30]
[310976117,1704838282668,-603.33,0.0004126,30]
[310976118,1704838282678,-608.68,0.0004126,30]
[310976119,1704838282689,-500.0,0.0004126,7]
[310976120,1704838282699,-1077.3,0.0004126,30]
[310976121,1704838282709,-669.59,0.0004126,30]
[310976122,1704838282720,-500.0,0.0004126,30]
[310976123,1704838282730,-500.0,0.0004126,30]
[310976124,1704838282741,-500.0,0.0004126,30]
[310976125,1704838282752,-500.0,0.0004126,30]
[310976126,1704838282762,-936.91,0.0004126,30]
[310976127,1704838282773,-500.0,0.0004126,30]
[310976128,1704838282783,-250.0,0.0004126,30]
[310976129,1704838282793,-500.0,0.0004126,30]
[310976130,1704838282803,-1709.05,0.0004126,30]
[310976131,1704838282816,-500.0,0.0004126,30]
[310976132,1704838282827,-500.0,0.0004126,30]
[310976133,1704838282838,-500.0,0.0004126,30]
[310976134,1704838282848,-500.0,0.0004126,30]
[310976135,1704838282858,-500.0,0.0004126,30]
[310976136,1704838282868,-1041.32,0.0004126,30]
[310976137,1704838282878,-509.62,0.0004126,30]
[310976138,1704838282888,-500.0,0.0004126,30]
[310976139,1704838282898,-609.15861807,0.0004126,30]
[310976140,1704838282909,-558.88115887,0.0004126,30]
[310976141,1704838282920,-827.64,0.0004126,30]
[310976142,1704838282930,-500.0,0.0004126,30]
[310976143,1704838282941,-500.0,0.0004126,30]
[310976144,1704838282951,-5000.0,0.0004126,14]
[310976145,1704838282961,-500.0,0.0004126,30]
[310976146,1704838282971,-500.0,0.0004126,30]
[310976147,1704838282982,-1164.73,0.0004126,30]
[310976148,1704838282992,-627.28168139,0.0004126,30]
[310976149,1704838283002,-840.51,0.0004126,30]
[310976150,1704838283012,-500.0,0.0004126,30]
[310976151,1704838283022,-500.0,0.0004126,30]
[310976152,1704838283032,-511.73,0.0004126,30]
[310976153,1704838283043,-500.0,0.0004126,30]
[310976154,1704838283054,-516.06,0.0004126,30]
[310976155,1704838283067,-500.0,0.0004126,30]
[310976156,1704838283078,-500.0,0.0004126,30]
[310976157,1704838283088,-500.0,0.0004126,30]
[310976158,1704838283099,-500.0,0.0004126,30]
[310976159,1704838283110,-500.0,0.0004126,30]
[310976160,1704838283120,-510.19,0.0004126,30]
[310976161,1704838283132,-500.0,0.0004126,30]
[310976162,1704838283143,-1092.61,0.0004126,30]
[310976163,1704838283154,-500.0,0.0004126,30]